[Event "*** SCC Grand Prix: Titled Tuesday Blitz"]
[Site "Chess.com"]
[Date "2020.07.21"]
[Round "9"]
[White "bocah_sakit"]
[Black "blitzking1729"]
[Result "1/2-1/2"]
[WhiteElo "2716"]
[BlackElo "2586"]
[TimeControl "180+1"]
[EndTime "11:49:57 PDT"]
[Termination "Game drawn by repetition"]

1. e4 {[%clk 0:03:00.9]} 1... c6 {[%clk 0:02:58.4]} 2. d4 {[%clk 0:03:00.7]}
2... d5 {[%clk 0:02:59.3]} 3. Nd2 {[%clk 0:03:01.3]} 3... dxe4 {[%clk
0:02:58.5]} 4. Nxe4 {[%clk 0:03:02.2]} 4... Bf5 {[%clk 0:02:57.6]} 5. Ng3 {[%clk
0:03:02.5]} 5... Bg6 {[%clk 0:02:57.7]} 6. Nf3 {[%clk 0:03:03.1]} 6... Nd7
{[%clk 0:02:56.3]} 7. h4 {[%clk 0:03:03.8]} 7... h6 {[%clk 0:02:55.9]} 8. h5
{[%clk 0:03:04.1]} 8... Bh7 {[%clk 0:02:56.1]} 9. Bd3 {[%clk 0:03:04.7]} 9...
Bxd3 {[%clk 0:02:56.5]} 10. Qxd3 {[%clk 0:03:05.6]} 10... e6 {[%clk 0:02:57]}
11. Bd2 {[%clk 0:03:05.9]} 11... Ngf6 {[%clk 0:02:56.2]} 12. O-O-O {[%clk
0:03:05.9]} 12... Be7 {[%clk 0:02:56.7]} 13. Ne4 {[%clk 0:03:06.4]} 13... Nxe4
{[%clk 0:02:55.9]} 14. Qxe4 {[%clk 0:03:07.3]} 14... Nf6 {[%clk 0:02:56.5]} 15.
Qe2 {[%clk 0:03:07.3]} 15... Qd5 {[%clk 0:02:56.9]} 16. c4 {[%clk 0:03:07.8]}
16... Qe4 {[%clk 0:02:56.5]} 17. Be3 {[%clk 0:03:08.3]} 17... O-O {[%clk
0:02:54.3]} 18. Ne5 {[%clk 0:03:05.1]} 18... c5 {[%clk 0:02:35.6]} 19. f3 {[%clk
0:03:02.4]} 19... Qh7 {[%clk 0:02:35.2]} 20. g4 {[%clk 0:02:57.7]} 20... cxd4
{[%clk 0:02:33]} 21. Bxd4 {[%clk 0:02:58.6]} 21... Rfd8 {[%clk 0:02:29.6]} 22.
Bc3 {[%clk 0:02:56.1]} 22... Ne8 {[%clk 0:02:20.6]} 23. f4 {[%clk 0:02:47.4]}
23... Nd6 {[%clk 0:02:11]} 24. Rhe1 {[%clk 0:02:39.8]} 24... Rac8 {[%clk
0:02:04.2]} 25. b3 {[%clk 0:02:35]} 25... b5 {[%clk 0:01:53.1]} 26. Kb2 {[%clk
0:02:22.9]} 26... bxc4 {[%clk 0:01:49.1]} 27. bxc4 {[%clk 0:02:21.5]} 27... Bf6
{[%clk 0:01:27.7]} 28. Ka1 {[%clk 0:02:15.8]} 28... Bxe5 {[%clk 0:01:18.6]} 29.
Bxe5 {[%clk 0:02:03.2]} 29... Nb7 {[%clk 0:01:09.5]} 30. Rxd8+ {[%clk
0:01:57.3]} 30... Rxd8 {[%clk 0:01:08.3]} 31. f5 {[%clk 0:01:57.9]} 31... exf5
{[%clk 0:01:04.7]} 32. Bc7 {[%clk 0:01:58]} 32... Rf8 {[%clk 0:01:01.2]} 33. Qf3
{[%clk 0:01:45.9]} 33... fxg4 {[%clk 0:00:44.3]} 34. Qxb7 {[%clk 0:01:45.4]}
34... Qd3 {[%clk 0:00:39.8]} 35. Qb3 {[%clk 0:01:34.9]} 35... Qd4+ {[%clk
0:00:30]} 36. Kb1 {[%clk 0:01:35]} 36... Rc8 {[%clk 0:00:26.6]} 37. Be5 {[%clk
0:01:12.8]} 37... Qxc4 {[%clk 0:00:24.7]} 38. Qxc4 {[%clk 0:01:12.1]} 38... Rxc4
{[%clk 0:00:25.6]} 39. Kb2 {[%clk 0:00:58.8]} 39... f6 {[%clk 0:00:24.6]} 40.
Bc3 {[%clk 0:00:58]} 40... Rc5 {[%clk 0:00:24.5]} 41. Rh1 {[%clk 0:00:52.4]}
41... g3 {[%clk 0:00:22.2]} 42. Rg1 {[%clk 0:00:48]} 42... Rg5 {[%clk
0:00:20.7]} 43. Bd4 {[%clk 0:00:46]} 43... f5 {[%clk 0:00:20.3]} 44. Bxa7 {[%clk
0:00:28.9]} 44... f4 {[%clk 0:00:20]} 45. Rf1 {[%clk 0:00:25.2]} 45... g2 {[%clk
0:00:17.7]} 46. Rxf4 {[%clk 0:00:25.5]} 46... g1=Q {[%clk 0:00:17.3]} 47. Bxg1
{[%clk 0:00:26.1]} 47... Rxg1 {[%clk 0:00:17.6]} 48. Rf5 {[%clk 0:00:26.1]}
48... g6 {[%clk 0:00:14.7]} 49. hxg6 {[%clk 0:00:23.1]} 49... Rxg6 {[%clk
0:00:15.6]} 50. Kb3 {[%clk 0:00:23.3]} 50... Kg7 {[%clk 0:00:15.5]} 51. a4
{[%clk 0:00:23.3]} 51... Rg1 {[%clk 0:00:15.1]} 52. a5 {[%clk 0:00:20.6]} 52...
Ra1 {[%clk 0:00:13.2]} 53. Kb2 {[%clk 0:00:20]} 53... Ra4 {[%clk 0:00:12.7]} 54.
Kb3 {[%clk 0:00:20.6]} 54... Ra1 {[%clk 0:00:12.6]} 55. Kb4 {[%clk 0:00:21.2]}
55... Kg6 {[%clk 0:00:12.2]} 56. Rd5 {[%clk 0:00:20]} 56... h5 {[%clk
0:00:12.1]} 57. Kb5 {[%clk 0:00:20.2]} 57... h4 {[%clk 0:00:11.1]} 58. a6 {[%clk
0:00:19.8]} 58... h3 {[%clk 0:00:10.9]} 59. Rd2 {[%clk 0:00:12.5]} 59... Kg5
{[%clk 0:00:09.5]} 60. Kb6 {[%clk 0:00:13.1]} 60... Kg4 {[%clk 0:00:09.5]} 61.
a7 {[%clk 0:00:13.6]} 61... Rxa7 {[%clk 0:00:08.7]} 62. Kxa7 {[%clk 0:00:13.3]}
62... Kg3 {[%clk 0:00:09.6]} 63. Kb6 {[%clk 0:00:13.5]} 63... h2 {[%clk
0:00:09.6]} 64. Rd1 {[%clk 0:00:11.3]} 64... Kg2 {[%clk 0:00:09.5]} 65. Rd2+
{[%clk 0:00:10.7]} 65... Kg3 {[%clk 0:00:09.3]} 66. Rd3+ {[%clk 0:00:10.4]}
66... Kg2 {[%clk 0:00:09.3]} 67. Rd2+ {[%clk 0:00:10.3]} 67... Kg3 {[%clk
0:00:09.5]} 1/2-1/2

[Event "*** SCC Grand Prix: Titled Tuesday Blitz"]
[Site "Chess.com"]
[Date "2020.07.21"]
[Round "9"]
[White "MagnusSeinFanboy"]
[Black "alexrustemov"]
[Result "0-1"]
[WhiteElo "2527"]
[BlackElo "2692"]
[TimeControl "180+1"]
[EndTime "11:50:04 PDT"]
[Termination "alexrustemov won by checkmate"]

1. d4 {[%clk 0:03:00.9]} 1... d5 {[%clk 0:02:58.9]} 2. c4 {[%clk 0:03:00.8]}
2... c6 {[%clk 0:02:59.1]} 3. Nf3 {[%clk 0:03:00.5]} 3... Nf6 {[%clk 0:02:59.2]}
4. e3 {[%clk 0:03:01.1]} 4... Bg4 {[%clk 0:02:57.8]} 5. Nc3 {[%clk 0:02:58]}
5... e6 {[%clk 0:02:57]} 6. h3 {[%clk 0:02:44]} 6... Bxf3 {[%clk 0:02:56.4]} 7.
Qxf3 {[%clk 0:02:44.9]} 7... Nbd7 {[%clk 0:02:56.7]} 8. Bd3 {[%clk 0:02:42]}
8... Bd6 {[%clk 0:02:52]} 9. O-O {[%clk 0:02:41.4]} 9... O-O {[%clk 0:02:51.5]}
10. e4 {[%clk 0:02:41]} 10... dxe4 {[%clk 0:02:46.3]} 11. Nxe4 {[%clk
0:02:40.7]} 11... Nxe4 {[%clk 0:02:46.3]} 12. Qxe4 {[%clk 0:02:20.8]} 12... g6
{[%clk 0:02:44.2]} 13. Rd1 {[%clk 0:02:16.9]} 13... Re8 {[%clk 0:02:32.5]} 14.
Bc2 {[%clk 0:02:09.5]} 14... Bf8 {[%clk 0:02:14.8]} 15. Be3 {[%clk 0:01:54.5]}
15... Bg7 {[%clk 0:02:12.3]} 16. Rd2 {[%clk 0:01:38.1]} 16... Nb6 {[%clk
0:02:10.2]} 17. b3 {[%clk 0:01:31.5]} 17... Qe7 {[%clk 0:01:56.4]} 18. Re1
{[%clk 0:01:22.2]} 18... Rad8 {[%clk 0:01:55.2]} 19. h4 {[%clk 0:01:14]} 19...
Nc8 {[%clk 0:01:43.9]} 20. h5 {[%clk 0:00:54.2]} 20... Nd6 {[%clk 0:01:42.8]}
21. Qg4 {[%clk 0:00:54.5]} 21... Nf5 {[%clk 0:01:40.9]} 22. Bg5 {[%clk
0:00:35.6]} 22... Bf6 {[%clk 0:01:40.6]} 23. Bxf6 {[%clk 0:00:25]} 23... Qxf6
{[%clk 0:01:41.5]} 24. hxg6 {[%clk 0:00:24.9]} 24... hxg6 {[%clk 0:01:40.4]} 25.
Bxf5 {[%clk 0:00:22]} 25... Qxf5 {[%clk 0:01:38.7]} 26. Qxf5 {[%clk 0:00:20.6]}
26... gxf5 {[%clk 0:01:39.1]} 27. Red1 {[%clk 0:00:20.2]} 27... Rd6 {[%clk
0:01:34.7]} 28. f4 {[%clk 0:00:19.3]} 28... Red8 {[%clk 0:01:25.5]} 29. Kf2
{[%clk 0:00:19.6]} 29... Kg7 {[%clk 0:01:26]} 30. Ke3 {[%clk 0:00:19.2]} 30...
Kf6 {[%clk 0:01:25.5]} 31. Rh1 {[%clk 0:00:18.5]} 31... Rg8 {[%clk 0:01:25.1]}
32. Rh6+ {[%clk 0:00:17.7]} 32... Ke7 {[%clk 0:01:25.2]} 33. Rh3 {[%clk
0:00:17.7]} 33... Rdd8 {[%clk 0:01:22.5]} 34. Kf3 {[%clk 0:00:17.2]} 34... Rg6
{[%clk 0:00:54.9]} 35. Rh7 {[%clk 0:00:16.7]} 35... Rdg8 {[%clk 0:00:53.8]} 36.
Rh2 {[%clk 0:00:16.5]} 36... Rg3+ {[%clk 0:00:53]} 37. Kf2 {[%clk 0:00:17.2]}
37... R3g4 {[%clk 0:00:44.6]} 38. Kf3 {[%clk 0:00:17]} 38... Rg3+ {[%clk
0:00:43.3]} 39. Kf2 {[%clk 0:00:17.4]} 39... Rc3 {[%clk 0:00:43.5]} 40. d5
{[%clk 0:00:14.4]} 40... cxd5 {[%clk 0:00:41.5]} 41. cxd5 {[%clk 0:00:15.3]}
41... Rd8 {[%clk 0:00:41.3]} 42. Ke2 {[%clk 0:00:15]} 42... Rxd5 {[%clk
0:00:39.7]} 43. Rxd5 {[%clk 0:00:15]} 43... exd5 {[%clk 0:00:40.6]} 44. Kd2
{[%clk 0:00:15.6]} 44... Rg3 {[%clk 0:00:39.2]} 45. Ke2 {[%clk 0:00:14.3]} 45...
Ke6 {[%clk 0:00:32.5]} 46. Kf2 {[%clk 0:00:14.7]} 46... Rc3 {[%clk 0:00:32.4]}
47. Rh8 {[%clk 0:00:12.7]} 47... Rc2+ {[%clk 0:00:31.6]} 48. Kf3 {[%clk
0:00:11.9]} 48... Rxa2 {[%clk 0:00:31.9]} 49. Re8+ {[%clk 0:00:11.6]} 49... Kd6
{[%clk 0:00:30.2]} 50. Rd8+ {[%clk 0:00:11.9]} 50... Kc5 {[%clk 0:00:28.6]} 51.
Rd7 {[%clk 0:00:12.4]} 51... b5 {[%clk 0:00:28]} 52. Rxf7 {[%clk 0:00:12]} 52...
Kb4 {[%clk 0:00:24]} 53. Rxf5 {[%clk 0:00:11.4]} 53... Kxb3 {[%clk 0:00:22.6]}
54. Rxd5 {[%clk 0:00:11.4]} 54... Kc4 {[%clk 0:00:21.1]} 55. Rd7 {[%clk
0:00:10.9]} 55... a5 {[%clk 0:00:18.4]} 56. f5 {[%clk 0:00:11.2]} 56... Ra1
{[%clk 0:00:18.6]} 57. g4 {[%clk 0:00:10.6]} 57... a4 {[%clk 0:00:17.9]} 58. g5
{[%clk 0:00:08.6]} 58... a3 {[%clk 0:00:17.5]} 59. f6 {[%clk 0:00:08]} 59...
Rf1+ {[%clk 0:00:16.4]} 60. Kg4 {[%clk 0:00:07.4]} 60... b4 {[%clk 0:00:15.8]}
61. f7 {[%clk 0:00:06.4]} 61... b3 {[%clk 0:00:13.8]} 62. g6 {[%clk 0:00:06]}
62... b2 {[%clk 0:00:13.3]} 63. Rb7 {[%clk 0:00:04.9]} 63... a2 {[%clk 0:00:13]}
64. g7 {[%clk 0:00:04.8]} 64... b1=Q {[%clk 0:00:12.1]} 65. g8=Q {[%clk
0:00:02.6]} 65... Qe4+ {[%clk 0:00:09.2]} 66. Kh5 {[%clk 0:00:02.8]} 66... Rh1+
{[%clk 0:00:08.7]} 67. Kg5 {[%clk 0:00:03.2]} 67... Rg1+ {[%clk 0:00:08.7]} 68.
Kh6 {[%clk 0:00:03.3]} 68... Qf4+ {[%clk 0:00:07.3]} 69. Kh7 {[%clk 0:00:03.3]}
69... Qh4# {[%clk 0:00:07]} 0-1

[Event "*** SCC Grand Prix: Titled Tuesday Blitz"]
[Site "Chess.com"]
[Date "2020.07.21"]
[Round "9"]
[White "AungTZ"]
[Black "FloMaster111"]
[Result "0-1"]
[WhiteElo "2041"]
[BlackElo "2282"]
[TimeControl "180+1"]
[EndTime "11:50:05 PDT"]
[Termination "FloMaster111 won on time"]

1. e4 {[%clk 0:02:24.2]} 1... c6 {[%clk 0:02:59.2]} 2. d4 {[%clk 0:02:21.5]}
2... d5 {[%clk 0:03:00.1]} 3. Nc3 {[%clk 0:02:20.8]} 3... b5 {[%clk 0:02:59.7]}
4. a3 {[%clk 0:02:17.8]} 4... a6 {[%clk 0:03:00.1]} 5. Nf3 {[%clk 0:02:14.9]}
5... Bg4 {[%clk 0:03:00.3]} 6. h3 {[%clk 0:02:11.5]} 6... Bh5 {[%clk 0:03:00.1]}
7. Be2 {[%clk 0:02:11.1]} 7... e6 {[%clk 0:03:00.1]} 8. O-O {[%clk 0:02:08.2]}
8... Nf6 {[%clk 0:03:00.3]} 9. Bg5 {[%clk 0:02:05.2]} 9... Be7 {[%clk 0:03:00]}
10. Bxf6 {[%clk 0:02:04.8]} 10... Bxf6 {[%clk 0:02:59.7]} 11. e5 {[%clk
0:02:05.7]} 11... Be7 {[%clk 0:02:59.8]} 12. Nd2 {[%clk 0:02:03.9]} 12... Bg6
{[%clk 0:02:59.4]} 13. Bd3 {[%clk 0:02:03.4]} 13... c5 {[%clk 0:02:58.1]} 14.
dxc5 {[%clk 0:02:02.7]} 14... Nc6 {[%clk 0:02:57.1]} 15. Nf3 {[%clk 0:01:59.5]}
15... Bxc5 {[%clk 0:02:56.5]} 16. Ne2 {[%clk 0:01:55.8]} 16... Qb6 {[%clk
0:02:55.2]} 17. c3 {[%clk 0:01:54.4]} 17... O-O {[%clk 0:02:52.5]} 18. Ned4
{[%clk 0:01:53.8]} 18... Be7 {[%clk 0:02:44.8]} 19. Bxg6 {[%clk 0:01:49.6]}
19... hxg6 {[%clk 0:02:44.5]} 20. Re1 {[%clk 0:01:48.7]} 20... Rac8 {[%clk
0:02:43.5]} 21. Nxc6 {[%clk 0:01:34.1]} 21... Rxc6 {[%clk 0:02:44.4]} 22. Qd3
{[%clk 0:01:26.8]} 22... Rfc8 {[%clk 0:02:43.5]} 23. Rad1 {[%clk 0:01:25.4]}
23... Qc5 {[%clk 0:02:39.7]} 24. Nd4 {[%clk 0:01:22.5]} 24... R6c7 {[%clk
0:02:36.7]} 25. Qf3 {[%clk 0:01:17.5]} 25... Qc4 {[%clk 0:02:34.2]} 26. g3
{[%clk 0:01:14.4]} 26... a5 {[%clk 0:02:34]} 27. h4 {[%clk 0:01:10.5]} 27... b4
{[%clk 0:02:33.7]} 28. cxb4 {[%clk 0:01:04.5]} 28... axb4 {[%clk 0:02:34.6]} 29.
a4 {[%clk 0:00:56.7]} 29... Bc5 {[%clk 0:02:18.2]} 30. Nb5 {[%clk 0:00:56.2]}
30... Rd7 {[%clk 0:02:08.7]} 31. Rc1 {[%clk 0:00:54.7]} 31... Qa2 {[%clk
0:02:08]} 32. b3 {[%clk 0:00:45]} 32... Qb2 {[%clk 0:01:59.9]} 33. Kg2 {[%clk
0:00:37.5]} 33... Qd2 {[%clk 0:01:47.2]} 34. Red1 {[%clk 0:00:33.9]} 34... Qb2
{[%clk 0:01:43.5]} 35. Rb1 {[%clk 0:00:30.2]} 35... Qxe5 {[%clk 0:01:42.6]} 36.
Rdc1 {[%clk 0:00:29.5]} 36... d4 {[%clk 0:01:33.3]} 37. Rd1 {[%clk 0:00:27.4]}
37... Qd5 {[%clk 0:01:32.2]} 38. Rd3 {[%clk 0:00:26.4]} 38... e5 {[%clk
0:01:29.5]} 39. Re1 {[%clk 0:00:24.4]} 39... f5 {[%clk 0:01:27.9]} 40. Qxd5+
{[%clk 0:00:22.3]} 40... Rxd5 {[%clk 0:01:28.8]} 41. Rc1 {[%clk 0:00:19.9]}
41... Kf7 {[%clk 0:00:46.7]} 42. Rc2 {[%clk 0:00:16.8]} 42... Ke6 {[%clk
0:00:44.5]} 43. Rc4 {[%clk 0:00:16.2]} 43... Kd7 {[%clk 0:00:30.6]} 44. Rd1
{[%clk 0:00:15.3]} 44... d3 {[%clk 0:00:21.6]} 45. Kf3 {[%clk 0:00:14]} 45...
e4+ {[%clk 0:00:19.3]} 46. Kg2 {[%clk 0:00:14.4]} 46... Bb6 {[%clk 0:00:14.8]}
47. Rxb4 {[%clk 0:00:12.6]} 47... Rc2 {[%clk 0:00:11.9]} 48. Nc3 {[%clk
0:00:06.4]} 48... Rxf2+ {[%clk 0:00:09]} 49. Kh3 {[%clk 0:00:07.3]} 49... Rd6
{[%clk 0:00:08.8]} 50. Nb5 {[%clk 0:00:06]} 50... Rf6 {[%clk 0:00:07.7]} 51. Nc3
{[%clk 0:00:04.7]} 51... d2 {[%clk 0:00:07.3]} 52. Nb1 {[%clk 0:00:04]} 52... e3
{[%clk 0:00:07.4]} 53. a5 {[%clk 0:00:04.4]} 53... Bxa5 {[%clk 0:00:06.8]} 54.
Rd4+ {[%clk 0:00:04.5]} 54... Ke7 {[%clk 0:00:06.7]} 55. b4 {[%clk 0:00:05.4]}
55... Bb6 {[%clk 0:00:06.9]} 56. Rd3 {[%clk 0:00:04.3]} 56... Re6 {[%clk
0:00:07.2]} 57. Nc3 {[%clk 0:00:03.6]} 57... e2 {[%clk 0:00:06.9]} 58. Nxe2
{[%clk 0:00:03.4]} 58... Rexe2 {[%clk 0:00:07.8]} 59. Rh1 {[%clk 0:00:01.4]}
59... Kf7 {[%clk 0:00:06.9]} 0-1

[Event "*** SCC Grand Prix: Titled Tuesday Blitz"]
[Site "Chess.com"]
[Date "2020.07.21"]
[Round "9"]
[White "kallerotmg"]
[Black "Haapana"]
[Result "0-1"]
[WhiteElo "2153"]
[BlackElo "2329"]
[TimeControl "180+1"]
[EndTime "11:50:07 PDT"]
[Termination "Haapana won by checkmate"]

1. d4 {[%clk 0:03:00.9]} 1... Nf6 {[%clk 0:02:59.1]} 2. Bg5 {[%clk 0:02:59.6]}
2... c5 {[%clk 0:02:57.1]} 3. e3 {[%clk 0:02:37.8]} 3... cxd4 {[%clk 0:02:26.6]}
4. exd4 {[%clk 0:02:35]} 4... g6 {[%clk 0:02:14.7]} 5. Nc3 {[%clk 0:02:33.2]}
5... Bg7 {[%clk 0:02:14.4]} 6. Qd2 {[%clk 0:02:33]} 6... d5 {[%clk 0:02:08.3]}
7. Nf3 {[%clk 0:02:13.7]} 7... Nc6 {[%clk 0:02:05.6]} 8. Bb5 {[%clk 0:02:06.5]}
8... O-O {[%clk 0:02:03.7]} 9. O-O {[%clk 0:01:59]} 9... Ne4 {[%clk 0:02:01.7]}
10. Qf4 {[%clk 0:01:07.2]} 10... Nxg5 {[%clk 0:01:48.3]} 11. Qxg5 {[%clk
0:01:03.1]} 11... Nxd4 {[%clk 0:01:29.6]} 12. Nxd4 {[%clk 0:00:59]} 12... Bxd4
{[%clk 0:01:30.5]} 13. Qxd5 {[%clk 0:00:55.3]} 13... Bxc3 {[%clk 0:01:19.8]} 14.
Qxd8 {[%clk 0:00:53.9]} 14... Rxd8 {[%clk 0:01:20.7]} 15. bxc3 {[%clk
0:00:53.6]} 15... Bf5 {[%clk 0:01:21.2]} 16. Ba4 {[%clk 0:00:38.6]} 16... Rac8
{[%clk 0:01:17.4]} 17. Rfe1 {[%clk 0:00:38.2]} 17... Kf8 {[%clk 0:01:15.1]} 18.
Re3 {[%clk 0:00:35.1]} 18... Rd2 {[%clk 0:01:14.1]} 19. Rae1 {[%clk 0:00:32.8]}
19... Rc7 {[%clk 0:01:09.3]} 20. Rc1 {[%clk 0:00:27.6]} 20... h5 {[%clk
0:00:45]} 21. h3 {[%clk 0:00:27.3]} 21... a6 {[%clk 0:00:44.7]} 22. Bb3 {[%clk
0:00:26.7]} 22... b5 {[%clk 0:00:43.4]} 23. a4 {[%clk 0:00:26.5]} 23... bxa4
{[%clk 0:00:33.4]} 24. Bxa4 {[%clk 0:00:27.4]} 24... Be6 {[%clk 0:00:21]} 25.
Bb3 {[%clk 0:00:26.4]} 25... Bf5 {[%clk 0:00:15.6]} 26. Ra1 {[%clk 0:00:21.2]}
26... Ra7 {[%clk 0:00:15.2]} 27. Ra2 {[%clk 0:00:19.5]} 27... Rd6 {[%clk
0:00:15.2]} 28. c4 {[%clk 0:00:19]} 28... Rc6 {[%clk 0:00:14.2]} 29. f3 {[%clk
0:00:17.7]} 29... Be6 {[%clk 0:00:13.4]} 30. Ra4 {[%clk 0:00:16.8]} 30... Rc5
{[%clk 0:00:12.3]} 31. Rd3 {[%clk 0:00:16.5]} 31... a5 {[%clk 0:00:12.3]} 32.
Rd8+ {[%clk 0:00:16.3]} 32... Kg7 {[%clk 0:00:12.4]} 33. Rb8 {[%clk 0:00:16.8]}
33... h4 {[%clk 0:00:11]} 34. Rb5 {[%clk 0:00:17.2]} 34... Rxb5 {[%clk
0:00:09.8]} 35. cxb5 {[%clk 0:00:18.1]} 35... Bxb3 {[%clk 0:00:10]} 36. cxb3
{[%clk 0:00:19]} 36... Kf6 {[%clk 0:00:06.8]} 37. Rxh4 {[%clk 0:00:18.8]} 37...
Rb7 {[%clk 0:00:06.4]} 38. Rf4+ {[%clk 0:00:19]} 38... Kg7 {[%clk 0:00:05.5]}
39. b4 {[%clk 0:00:18.9]} 39... Rxb5 {[%clk 0:00:04.2]} 40. bxa5 {[%clk
0:00:18.8]} 40... Rxa5 {[%clk 0:00:05.1]} 41. Kh2 {[%clk 0:00:19.4]} 41... e6
{[%clk 0:00:05.3]} 42. Kg3 {[%clk 0:00:20.3]} 42... Rd5 {[%clk 0:00:05.2]} 43.
Rg4 {[%clk 0:00:20.4]} 43... Kf8 {[%clk 0:00:05.6]} 44. Rc4 {[%clk 0:00:20.8]}
44... Ke7 {[%clk 0:00:05.9]} 45. h4 {[%clk 0:00:21.7]} 45... Kf6 {[%clk
0:00:06.4]} 46. Ra4 {[%clk 0:00:22]} 46... Rh5 {[%clk 0:00:06.1]} 47. Rf4+
{[%clk 0:00:22.2]} 47... Kg7 {[%clk 0:00:05.4]} 48. Kg4 {[%clk 0:00:23.1]} 48...
Rd5 {[%clk 0:00:05.8]} 49. Re4 {[%clk 0:00:23.3]} 49... Rc5 {[%clk 0:00:06.2]}
50. g3 {[%clk 0:00:23.7]} 50... Rf5 {[%clk 0:00:06.7]} 51. Ra4 {[%clk
0:00:22.9]} 51... Rd5 {[%clk 0:00:07.1]} 52. Ra7 {[%clk 0:00:22.7]} 52... Rc5
{[%clk 0:00:07.4]} 53. f4 {[%clk 0:00:22.3]} 53... Rd5 {[%clk 0:00:07.6]} 54.
Kh3 {[%clk 0:00:21.5]} 54... Rb5 {[%clk 0:00:07.9]} 55. Rc7 {[%clk 0:00:20.7]}
55... Rb3 {[%clk 0:00:07.2]} 56. Kg4 {[%clk 0:00:20.9]} 56... Rd3 {[%clk
0:00:07.4]} 57. h5 {[%clk 0:00:20.4]} 57... gxh5+ {[%clk 0:00:06.7]} 58. Kh4
{[%clk 0:00:20.9]} 58... Rd5 {[%clk 0:00:06.6]} 59. Re7 {[%clk 0:00:18.9]} 59...
Kg6 {[%clk 0:00:06.7]} 60. Ra7 {[%clk 0:00:19]} 60... Rd1 {[%clk 0:00:05.6]} 61.
Kh3 {[%clk 0:00:19]} 61... Rh1+ {[%clk 0:00:06.1]} 62. Kg2 {[%clk 0:00:19.2]}
62... Rd1 {[%clk 0:00:06.6]} 63. Ra5 {[%clk 0:00:19]} 63... Rd3 {[%clk 0:00:06]}
64. Kh3 {[%clk 0:00:18.4]} 64... f6 {[%clk 0:00:05]} 65. Kh4 {[%clk 0:00:17.8]}
65... Rd1 {[%clk 0:00:03.9]} 66. Kh3 {[%clk 0:00:18.1]} 66... Re1 {[%clk
0:00:01.8]} 67. Kg2 {[%clk 0:00:18]} 67... Re2+ {[%clk 0:00:01.4]} 68. Kf3
{[%clk 0:00:17.8]} 68... Rd2 {[%clk 0:00:02.3]} 69. Ra6 {[%clk 0:00:17.7]} 69...
Rd3+ {[%clk 0:00:02.4]} 70. Kg2 {[%clk 0:00:16.9]} 70... Rd2+ {[%clk 0:00:02.4]}
71. Kh3 {[%clk 0:00:16.3]} 71... Kf5 {[%clk 0:00:02.9]} 72. Ra5+ {[%clk
0:00:16.3]} 72... e5 {[%clk 0:00:03.5]} 73. Kh4 {[%clk 0:00:13.9]} 73... Rh2#
{[%clk 0:00:03.1]} 0-1

[Event "*** SCC Grand Prix: Titled Tuesday Blitz"]
[Site "Chess.com"]
[Date "2020.07.21"]
[Round "9"]
[White "MashaFromRussia"]
[Black "Morshynska"]
[Result "1-0"]
[WhiteElo "2377"]
[BlackElo "2172"]
[TimeControl "180+1"]
[EndTime "11:50:07 PDT"]
[Termination "MashaFromRussia won by resignation"]

1. d4 {[%clk 0:03:00.9]} 1... d5 {[%clk 0:02:58.2]} 2. c4 {[%clk 0:03:01.2]}
2... c6 {[%clk 0:02:57.4]} 3. Nf3 {[%clk 0:03:01.6]} 3... Nf6 {[%clk 0:02:56.7]}
4. Nc3 {[%clk 0:03:02]} 4... e6 {[%clk 0:02:56.4]} 5. g3 {[%clk 0:03:02.1]} 5...
Nbd7 {[%clk 0:02:53.8]} 6. Bg2 {[%clk 0:03:01.9]} 6... Bd6 {[%clk 0:02:49.5]} 7.
O-O {[%clk 0:03:01.4]} 7... O-O {[%clk 0:02:48.4]} 8. b3 {[%clk 0:03:01.6]} 8...
Qe7 {[%clk 0:02:46.2]} 9. Qc2 {[%clk 0:03:00.5]} 9... a6 {[%clk 0:02:32.7]} 10.
e4 {[%clk 0:02:56.2]} 10... dxe4 {[%clk 0:02:31.5]} 11. Nxe4 {[%clk 0:02:56.7]}
11... Nxe4 {[%clk 0:02:32.4]} 12. Qxe4 {[%clk 0:02:57.6]} 12... Nf6 {[%clk
0:02:32.8]} 13. Qe2 {[%clk 0:02:53.8]} 13... c5 {[%clk 0:02:28.4]} 14. Bb2
{[%clk 0:02:39.2]} 14... cxd4 {[%clk 0:02:25.7]} 15. Bxd4 {[%clk 0:02:34.7]}
15... Bc5 {[%clk 0:02:14.7]} 16. Bxc5 {[%clk 0:02:28.3]} 16... Qxc5 {[%clk
0:02:15.6]} 17. Ne5 {[%clk 0:02:15.2]} 17... Rb8 {[%clk 0:02:08.5]} 18. Rad1
{[%clk 0:02:13.4]} 18... h6 {[%clk 0:01:55.8]} 19. Qe3 {[%clk 0:01:47.3]} 19...
Qxe3 {[%clk 0:01:41.5]} 20. fxe3 {[%clk 0:01:48.2]} 20... Re8 {[%clk 0:01:39.1]}
21. Rd2 {[%clk 0:01:34.2]} 21... Kf8 {[%clk 0:01:37.8]} 22. h4 {[%clk
0:01:28.4]} 22... Ke7 {[%clk 0:01:04.6]} 23. g4 {[%clk 0:01:23.9]} 23... Rf8
{[%clk 0:00:53.7]} 24. Rfd1 {[%clk 0:00:46.6]} 24... g5 {[%clk 0:00:43.7]} 25.
hxg5 {[%clk 0:00:46.3]} 25... hxg5 {[%clk 0:00:44.6]} 26. Kf2 {[%clk 0:00:46.7]}
26... a5 {[%clk 0:00:41.3]} 27. Kg3 {[%clk 0:00:45.1]} 27... a4 {[%clk
0:00:38.4]} 28. b4 {[%clk 0:00:43.9]} 28... a3 {[%clk 0:00:36.7]} 29. Bf3 {[%clk
0:00:41]} 29... Ra8 {[%clk 0:00:36.1]} 30. Rd6 {[%clk 0:00:36.3]} 30... Ra4
{[%clk 0:00:34.3]} 31. Rb6 {[%clk 0:00:36.4]} 31... Rh8 {[%clk 0:00:18.6]} 32.
Bxb7 {[%clk 0:00:32.8]} 32... Ra7 {[%clk 0:00:14.1]} 33. Bxc8 {[%clk 0:00:30.2]}
33... Rxc8 {[%clk 0:00:15]} 34. Nc6+ {[%clk 0:00:28]} 34... Rxc6 {[%clk
0:00:13.8]} 35. Rxc6 {[%clk 0:00:21.9]} 35... Ne4+ {[%clk 0:00:14.7]} 36. Kf3
{[%clk 0:00:18.7]} 36... Nc3 {[%clk 0:00:15.6]} 37. Rd2 {[%clk 0:00:15.6]} 37...
Ra4 {[%clk 0:00:14.3]} 38. b5 {[%clk 0:00:15.2]} 38... Rb4 {[%clk 0:00:14]} 39.
Rc2 {[%clk 0:00:14]} 39... Na4 {[%clk 0:00:11.4]} 40. Ra6 {[%clk 0:00:13.7]}
40... Rb2 {[%clk 0:00:10.2]} 41. Rc1 {[%clk 0:00:12.3]} 41... Nc5 {[%clk
0:00:08.6]} 42. Rxa3 {[%clk 0:00:12.4]} 42... Rb4 {[%clk 0:00:07.3]} 43. Ra7+
{[%clk 0:00:12.5]} 43... Kd6 {[%clk 0:00:06.1]} 44. a4 {[%clk 0:00:12.5]} 44...
Ke5 {[%clk 0:00:05.7]} 45. a5 {[%clk 0:00:12.3]} 45... f5 {[%clk 0:00:05.5]} 46.
gxf5 {[%clk 0:00:12.3]} 46... exf5 {[%clk 0:00:06.4]} 47. Re7+ {[%clk
0:00:12.3]} 47... Kf6 {[%clk 0:00:05.6]} 48. Re8 {[%clk 0:00:12.4]} 48... Ne4
{[%clk 0:00:04.9]} 49. Rh1 {[%clk 0:00:11.5]} 49... Rb2 {[%clk 0:00:04.6]} 50.
Rxe4 {[%clk 0:00:09.4]} 50... fxe4+ {[%clk 0:00:05.5]} 51. Kxe4 {[%clk
0:00:10.3]} 51... g4 {[%clk 0:00:05.3]} 52. a6 {[%clk 0:00:10.5]} 52... g3
{[%clk 0:00:04.8]} 53. Rg1 {[%clk 0:00:10.9]} 53... g2 {[%clk 0:00:04.5]} 54.
Kf3 {[%clk 0:00:11.2]} 54... Ra2 {[%clk 0:00:02.6]} 55. Rxg2 {[%clk 0:00:10.9]}
55... Ra4 {[%clk 0:00:03.5]} 56. Rd2 {[%clk 0:00:08.2]} 56... Ke5 {[%clk
0:00:03.4]} 57. Rb2 {[%clk 0:00:08.3]} 57... Rxc4 {[%clk 0:00:02.4]} 58. a7
{[%clk 0:00:08]} 58... Ra4 {[%clk 0:00:02.6]} 59. b6 {[%clk 0:00:08.1]} 59...
Ra6 {[%clk 0:00:01.8]} 60. b7 {[%clk 0:00:08.3]} 60... Rf6+ {[%clk 0:00:02.7]}
61. Ke2 {[%clk 0:00:08]} 61... Rh6 {[%clk 0:00:02.3]} 62. b8=Q+ {[%clk
0:00:07.9]} 62... Ke4 {[%clk 0:00:01.3]} 63. Qf4+ {[%clk 0:00:08]} 1-0